[Event "44th Chess Olympiad Open 2022"]
[Site "Chennai"]
[Date "2022.08.07"]
[Round "9.72"]
[White "Mirulla, David"]
[Black "Karelina, Polina"]
[Result "1-0"]
[WhiteElo "1953"]
[BlackElo "1835"]
[Annotator "NA"]
[PlyCount "113"]
[EventDate "2022.??.??"]
[TimeControl "60"]

1. e4 {[%emt 0:00:07]} d6 {[%emt 0:00:12]} 2. d4 {[%emt 0:00:09]} Nf6 {[%emt 0:
00:00]} 3. Nc3 {[%emt 0:00:17]} c6 {[%emt 0:00:13]} 4. f4 {[%emt 0:00:37]} Qa5
{[%emt 0:00:06]} 5. Bd3 {[%emt 0:00:29]} e5 {[%emt 0:00:08]} 6. Nf3 {[%emt 0:
00:00]} Bg4 {[%emt 0:00:18]} 7. Be3 {[%emt 0:04:54]} Nbd7 {[%emt 0:00:32]} 8.
h3 {[%emt 0:15:42]} exf4 {[%emt 0:06:14]} 9. Bxf4 {[%emt 0:00:53]} Bh5 {
[%emt 0:03:29]} 10. O-O {[%emt 0:07:59]} Be7 {[%emt 0:03:56]} 11. Qd2 {[%emt 0:
00:00]} O-O {[%emt 0:10:12]} 12. Nd5 {[%emt 0:05:52]} Qd8 {[%emt 0:01:18]} 13.
Nxe7+ {[%emt 0:01:26]} Qxe7 {[%emt 0:00:15]} 14. Rae1 {[%emt 0:03:35]} Bg6 {
[%emt 0:02:38]} 15. Bg5 {[%emt 0:04:35]} h6 {[%emt 0:04:23]} 16. Bh4 {[%emt 0:
00:00]} Qe6 {[%emt 0:06:08]} 17. e5 {[%emt 0:06:33]} dxe5 {[%emt 0:01:24]} 18.
Nxe5 {[%emt 0:04:59]} Bxd3 {[%emt 0:04:40]} 19. Nxd7 {[%emt 0:05:56]} Qxd7 {
[%emt 0:00:12]} 20. Qxd3 {[%emt 0:02:07]} Rfe8 {[%emt 0:13:52]} 21. Bxf6 {
[%emt 0:02:02]} Rxe1 {[%emt 0:00:16]} 22. Rxe1 {[%emt 0:00:21]} gxf6 {[%emt 0:
00:00]} 23. Qe4 {[%emt 0:01:56]} Rd8 {[%emt 0:00:53]} 24. c3 {[%emt 0:00:26]}
Qd5 {[%emt 0:12:04]} 25. Qxd5 {[%emt 0:01:02]} Rxd5 {[%emt 0:00:08]} 26. Re7 {
[%emt 0:00:27]} Rb5 {[%emt 0:00:32]} 27. b4 {[%emt 0:00:54]} Kf8 {[%emt 0:00:
00]} 28. Rc7 {[%emt 0:01:28]} Ke8 {[%emt 0:00:24]} 29. Kf2 {[%emt 0:01:08]} a5
{[%emt 0:01:20]} 30. a3 {[%emt 0:02:06]} axb4 {[%emt 0:01:00]} 31. axb4 {
[%emt 0:00:11]} h5 {[%emt 0:00:24]} 32. Kf3 {[%emt 0:01:58]} Rf5+ {[%emt 0:00:
00]} 33. Ke2 {[%emt 0:00:30]} Rg5 {[%emt 0:00:39]} 34. Kf2 {[%emt 0:01:03]}
Rf5+ {[%emt 0:00:15]} 35. Kg1 {[%emt 0:00:34]} Rb5 {[%emt 0:00:27]} 36. h4 {
[%emt 0:02:19]} Kf8 {[%emt 0:00:55]} 37. g3 {[%emt 0:05:02]} Kg7 {[%emt 0:00:
00]} 38. Kf2 {[%emt 0:00:57]} Kg6 {[%emt 0:02:34]} 39. Ke3 {[%emt 0:01:42]} f5
{[%emt 0:00:18]} 40. Kd3 {[%emt 0:03:38]} f6 {[%emt 0:00:51]} 41. Ke3 {[%emt 0:
00:00]} Kh6 {[%emt 0:30:29]} 42. Kd2 {[%emt 0:00:00]} Kg6 {[%emt 0:00:00]} 43.
Rd7 {[%emt 0:00:00]} f4 {[%emt 0:00:00]} 44. gxf4 {[%emt 0:00:00]} Kf5 {
[%emt 0:00:00]} 45. Ke3 {[%emt 0:00:00]} Kg4 {[%emt 0:00:00]} 46. Rf7 {[%emt 0:
00:00]} Rf5 {[%emt 0:00:00]} 47. Rg7+ {[%emt 0:00:00]} Kxh4 {[%emt 0:00:00]}
48. c4 {[%emt 0:00:00]} b5 {[%emt 0:00:00]} 49. Ke4 {[%emt 0:00:00]} bxc4 {
[%emt 0:00:00]} 50. Kxf5 {[%emt 0:00:00]} c3 {[%emt 0:00:00]} 51. Rg2 {[%emt 0:
00:00]} Kh3 {[%emt 0:00:00]} 52. Rc2 {[%emt 0:00:00]} h4 {[%emt 0:00:00]} 53.
Rxc3+ {[%emt 0:00:00]} Kg2 {[%emt 0:00:00]} 54. Kxf6 {[%emt 0:00:00]} h3 {
[%emt 0:00:00]} 55. Ke5 {[%emt 0:00:00]} h2 {[%emt 0:00:00]} 56. Rc2+ {[%emt 0:
00:00]} Kg3 {[%emt 0:00:00]} 57. Rxh2 {[%emt 0:00:00]} 1-0

[Event "44th Chess Olympiad Open 2022"]
[Site "Chennai"]
[Date "2022.08.07"]
[Round "9.72"]
[White "Knowles, Kendrick"]
[Black "Teixeira, Gil"]
[Result "1-0"]
[WhiteElo "1907"]
[BlackElo "1741"]
[Annotator "NA RC"]
[PlyCount "103"]
[EventDate "2022.??.??"]
[TimeControl "60"]

1. d4 {[%emt 0:00:39]} d5 {[%emt 0:00:09]} 2. Nf3 {[%emt 0:00:31]} Bf5 {
[%emt 0:00:15]} 3. g3 {[%emt 0:00:17]} Nf6 {[%emt 0:00:20]} 4. Bg2 {[%emt 0:00:
00]} e6 {[%emt 0:00:14]} 5. O-O {[%emt 0:00:09]} Be7 {[%emt 0:00:18]} 6. c4 {
[%emt 0:00:38]} c6 {[%emt 0:00:09]} 7. Nc3 {[%emt 0:00:18]} O-O {[%emt 0:00:06]
} 8. h3 {[%emt 0:01:08]} h6 {[%emt 0:00:12]} 9. b3 {[%emt 0:00:57]} Nbd7 {
[%emt 0:00:16]} 10. Bb2 {[%emt 0:00:20]} a5 {[%emt 0:00:08]} 11. Nd2 {[%emt 0:
00:00]} Re8 {[%emt 0:00:17]} 12. Kh2 {[%emt 0:01:06]} Rb8 {[%emt 0:01:13]} 13.
a4 {[%emt 0:01:27]} Qc7 {[%emt 0:01:24]} 14. Rc1 {[%emt 0:00:45]} Qb6 {[%emt 0:
00:00]} 15. e3 {[%emt 0:04:02]} Qd8 {[%emt 0:02:04]} 16. f3 {[%emt 0:00:19]}
Bd6 {[%emt 0:00:17]} 17. e4 {[%emt 0:00:19]} Nh5 {[%emt 0:01:26]} 18. f4 {
[%emt 0:01:33]} Bg6 {[%emt 0:00:21]} 19. e5 {[%emt 0:00:37]} Bc7 {[%emt 0:00:
00]} 20. Bf3 {[%emt 0:00:45]} Nxf4 {[%emt 0:00:58]} 21. gxf4 {[%emt 0:00:20]}
Qh4 {[%emt 0:02:55]} 22. Ne2 {[%emt 0:01:24]} Bf5 {[%emt 0:00:14]} 23. Bg2 {
[%emt 0:00:35]} Bd8 {[%emt 0:03:04]} 24. Nf3 {[%emt 0:00:48]} Qe7 {[%emt 0:00:
00]} 25. Qd2 {[%emt 0:01:23]} b5 {[%emt 0:00:54]} 26. c5 {[%emt 0:00:33]} bxa4
{[%emt 0:00:35]} 27. bxa4 {[%emt 0:00:14]} Rb4 {[%emt 0:01:24]} 28. Bc3 {
[%emt 0:00:41]} Rxa4 {[%emt 0:01:35]} 29. Ra1 {[%emt 0:00:41]} Rc4 {[%emt 0:00:
00]} 30. Bxa5 {[%emt 0:00:14]} Rc2 {[%emt 0:01:38]} 31. Qd1 {[%emt 0:01:03]}
Bxa5 {[%emt 0:00:12]} 32. Rxa5 {[%emt 0:00:21]} Rb2 {[%emt 0:00:38]} 33. Ng3 {
[%emt 0:00:49]} Bh7 {[%emt 0:02:17]} 34. Qa1 {[%emt 0:00:27]} Reb8 {[%emt 0:00:
00]} 35. Ra8 {[%emt 0:00:42]} R2b5 {[%emt 0:03:06]} 36. Qa7 {[%emt 0:01:46]}
Rxa8 {[%emt 0:00:14]} 37. Qxa8+ {[%emt 0:00:10]} Nb8 {[%emt 0:00:33]} 38. Ra1 {
[%emt 0:00:40]} g5 {[%emt 0:01:53]} 39. fxg5 {[%emt 0:00:39]} hxg5 {[%emt 0:00:
00]} 40. Ra7 {[%emt 0:00:27]} Qd8 {[%emt 0:01:25]} 41. Nh5 {[%emt 0:30:24]} Bg6
{[%emt 0:32:55]} 42. Rd7 {[%emt 0:00:49]} Qf8 {[%emt 0:02:01]} 43. Nf6+ {
[%emt 0:00:07]} Kg7 {[%emt 0:00:47]} 44. Rb7 {[%emt 0:00:14]} Bf5 {[%emt 0:00:
00]} 45. Nxg5 {[%emt 0:00:27]} Rxb7 {[%emt 0:00:26]} 46. Qxb7 {[%emt 0:00:06]}
Kg6 {[%emt 0:02:03]} 47. h4 {[%emt 0:04:06]} Kg7 {[%emt 0:01:08]} 48. Bh3 {
[%emt 0:00:32]} Kg6 {[%emt 0:00:54]} 49. Nxe6 {[%emt 0:01:32]} Bxe6 {[%emt 0:
00:00]} 50. Bxe6 {[%emt 0:00:05]} Na6 {[%emt 0:00:06]} 51. Qb1+ {[%emt 0:02:14]
} Kh6 {[%emt 0:02:07]} 52. Qh7# {[%emt 0:00:30]} 1-0

[Event "44th Chess Olympiad Open 2022"]
[Site "Chennai"]
[Date "2022.08.07"]
[Round "9.72"]
[White "Lockhart, Kenville"]
[Black "Rodriguez Guevara, Celia M."]
[Result "1-0"]
[WhiteElo "1551"]
[BlackElo "1859"]
[Annotator "NA"]
[PlyCount "119"]
[EventDate "2022.??.??"]
[TimeControl "60"]

1. e4 {[%emt 0:00:03]} d5 {[%emt 0:00:08]} 2. exd5 {[%emt 0:00:08]} Qxd5 {
[%emt 0:00:05]} 3. Nc3 {[%emt 0:00:10]} Qd8 {[%emt 0:00:08]} 4. d4 {[%emt 0:00:
00]} Nf6 {[%emt 0:00:18]} 5. h3 {[%emt 0:00:21]} Bf5 {[%emt 0:00:57]} 6. Nf3 {
[%emt 0:00:44]} e6 {[%emt 0:00:49]} 7. Bc4 {[%emt 0:03:17]} c6 {[%emt 0:00:56]}
8. O-O {[%emt 0:00:23]} Be7 {[%emt 0:02:22]} 9. Ne2 {[%emt 0:02:18]} O-O {
[%emt 0:01:37]} 10. Ng3 {[%emt 0:01:46]} Bg6 {[%emt 0:00:48]} 11. Ne5 {[%emt 0:
00:00]} Nbd7 {[%emt 0:02:04]} 12. Nxg6 {[%emt 0:00:24]} hxg6 {[%emt 0:00:40]}
13. Bf4 {[%emt 0:02:38]} Nd5 {[%emt 0:03:29]} 14. Bd2 {[%emt 0:05:56]} N7f6 {
[%emt 0:03:51]} 15. c3 {[%emt 0:07:02]} c5 {[%emt 0:03:30]} 16. Bg5 {[%emt 0:
00:00]} Nb6 {[%emt 0:04:12]} 17. Bb3 {[%emt 0:01:45]} cxd4 {[%emt 0:02:13]} 18.
Qxd4 {[%emt 0:01:19]} Qxd4 {[%emt 0:00:58]} 19. cxd4 {[%emt 0:00:01]} Rfd8 {
[%emt 0:07:26]} 20. Rfd1 {[%emt 0:00:33]} Rd7 {[%emt 0:04:59]} 21. Rd3 {
[%emt 0:02:15]} Rad8 {[%emt 0:10:55]} 22. Rad1 {[%emt 0:00:05]} Nfd5 {[%emt 0:
00:00]} 23. Bxe7 {[%emt 0:04:17]} Nxe7 {[%emt 0:00:00]} 24. a3 {[%emt 0:08:25]}
Nc6 {[%emt 0:03:45]} 25. Ne2 {[%emt 0:01:31]} a5 {[%emt 0:08:25]} 26. f4 {
[%emt 0:04:09]} Nc8 {[%emt 0:04:54]} 27. d5 {[%emt 0:03:23]} N6e7 {[%emt 0:00:
00]} 28. Nc3 {[%emt 0:00:38]} Nb6 {[%emt 0:10:31]} 29. d6 {[%emt 0:07:01]} Nec8
{[%emt 0:05:13]} 30. Nb5 {[%emt 0:00:21]} Na7 {[%emt 0:01:33]} 31. Nxa7 {
[%emt 0:00:12]} a4 {[%emt 0:01:13]} 32. Ba2 {[%emt 0:00:08]} Ra8 {[%emt 0:00:
00]} 33. Nb5 {[%emt 0:00:02]} Ra5 {[%emt 0:00:02]} 34. Nc3 {[%emt 0:01:06]} Rf5
{[%emt 0:00:12]} 35. g3 {[%emt 0:00:58]} Rc5 {[%emt 0:00:03]} 36. Kf2 {[%emt 0:
00:00]} Nc8 {[%emt 0:00:16]} 37. Nxa4 {[%emt 0:00:44]} Rc6 {[%emt 0:00:22]} 38.
Rc3 {[%emt 0:01:17]} Rdxd6 {[%emt 0:00:21]} 39. Rxd6 {[%emt 0:00:23]} Nxd6 {
[%emt 0:00:09]} 40. Rxc6 {[%emt 0:00:12]} bxc6 {[%emt 0:00:01]} 41. Nc3 {
[%emt 0:30:32]} Kf8 {[%emt 0:30:17]} 42. b4 {[%emt 0:00:53]} Ke7 {[%emt 0:00:
00]} 43. a4 {[%emt 0:00:27]} Kd7 {[%emt 0:00:05]} 44. g4 {[%emt 0:00:52]} Kc7 {
[%emt 0:00:32]} 45. Ke3 {[%emt 0:00:24]} Kd7 {[%emt 0:00:00]} 46. Ne4 {[%emt 0:
00:00]} Nc8 {[%emt 0:00:00]} 47. a5 {[%emt 0:00:00]} Na7 {[%emt 0:00:00]} 48.
Bc4 {[%emt 0:00:00]} Kc7 {[%emt 0:00:00]} 49. Ng5 {[%emt 0:00:00]} e5 {[%emt 0:
00:00]} 50. fxe5 {[%emt 0:00:00]} f6 {[%emt 0:00:00]} 51. Ne6+ {[%emt 0:00:00]}
Kd7 {[%emt 0:00:00]} 52. exf6 {[%emt 0:00:00]} gxf6 {[%emt 0:00:00]} 53. Nf8+ {
[%emt 0:00:00]} Kd6 {[%emt 0:00:00]} 54. Nxg6 {[%emt 0:00:00]} Kc7 {[%emt 0:00:
00]} 55. h4 {[%emt 0:00:00]} Nc8 {[%emt 0:00:00]} 56. h5 {[%emt 0:00:00]} Nd6 {
[%emt 0:00:00]} 57. Be6 {[%emt 0:00:00]} c5 {[%emt 0:00:00]} 58. h6 {[%emt 0:
00:00]} c4 {[%emt 0:00:00]} 59. h7 {[%emt 0:00:00]} c3 {[%emt 0:00:00]} 60.
h8=Q {[%emt 0:00:00]} 1-0

[Event "44th Chess Olympiad Open 2022"]
[Site "Chennai"]
[Date "2022.08.07"]
[Round "9.73"]
[White "Blackman, Justin"]
[Black "Ashraf, Ahmed Ramadan"]
[Result "1-0"]
[WhiteElo "2195"]
[BlackElo "1916"]
[Annotator "RC"]
[PlyCount "65"]
[EventDate "2022.??.??"]
[TimeControl "60"]

1. e4 {[%emt 0:00:03]} d5 {[%emt 0:00:05]} 2. exd5 {[%emt 0:00:06]} Nf6 {
[%emt 0:00:06]} 3. d4 {[%emt 0:00:11]} Nxd5 {[%emt 0:00:20]} 4. Nf3 {[%emt 0:
00:00]} e6 {[%emt 0:01:05]} 5. c4 {[%emt 0:00:13]} Nf6 {[%emt 0:00:00]} 6. Nc3
{[%emt 0:00:05]} c5 {[%emt 0:00:08]} 7. Be3 {[%emt 0:00:09]} cxd4 {[%emt 0:00:
00]} 8. Nxd4 {[%emt 0:00:04]} Be7 {[%emt 0:01:44]} 9. Qf3 {[%emt 0:00:35]} a6 {
[%emt 0:02:43]} 10. g4 {[%emt 0:08:52]} O-O {[%emt 0:05:02]} 11. g5 {[%emt 0:
00:00]} Nfd7 {[%emt 0:07:10]} 12. h4 {[%emt 0:00:30]} Ne5 {[%emt 0:04:16]} 13.
Qe4 {[%emt 0:06:20]} Qc7 {[%emt 0:06:44]} 14. h5 {[%emt 0:03:00]} f5 {[%emt 0:
00:00]} 15. gxf6 {[%emt 0:02:33]} Bxf6 {[%emt 0:05:01]} 16. f4 {[%emt 0:22:43]}
Ng4 {[%emt 0:06:56]} 17. O-O-O {[%emt 0:05:18]} Nxe3 {[%emt 0:08:32]} 18. Qxe3
{[%emt 0:00:09]} Qc5 {[%emt 0:01:32]} 19. Ne4 {[%emt 0:04:19]} Bxd4 {[%emt 0:
00:00]} 20. Rxd4 {[%emt 0:00:15]} Qc7 {[%emt 0:00:28]} 21. Nd6 {[%emt 0:16:37]}
Nc6 {[%emt 0:02:07]} 22. Rd2 {[%emt 0:01:09]} Bd7 {[%emt 0:04:55]} 23. Bh3 {
[%emt 0:01:50]} Nd8 {[%emt 0:08:11]} 24. Rhd1 {[%emt 0:07:20]} h6 {[%emt 0:00:
00]} 25. Kb1 {[%emt 0:01:32]} a5 {[%emt 0:02:27]} 26. Nxb7 {[%emt 0:08:14]}
Qxb7 {[%emt 0:03:04]} 27. Rxd7 {[%emt 0:00:10]} Qc6 {[%emt 0:00:37]} 28. Qe5 {
[%emt 0:02:47]} Rf6 {[%emt 0:03:57]} 29. Rxd8+ {[%emt 0:01:24]} Rxd8 {[%emt 0:
00:00]} 30. Rxd8+ {[%emt 0:00:06]} Kh7 {[%emt 0:00:41]} 31. Bf1 {[%emt 0:00:45]
} Qh1 {[%emt 0:00:40]} 32. Rd1 {[%emt 0:01:28]} Rf5 {[%emt 0:00:34]} 33. Qxe6 {
[%emt 0:00:37]} 1-0

[Event "44th Chess Olympiad Open 2022"]
[Site "Chennai"]
[Date "2022.08.07"]
[Round "9.73"]
[White "Fuad, Ahmed Mufleh"]
[Black "Edwards, Emar"]
[Result "0-1"]
[WhiteElo "2086"]
[BlackElo "1695"]
[Annotator "NA RC"]
[PlyCount "58"]
[EventDate "2022.??.??"]
[TimeControl "60"]

1. Nf3 {[%emt 0:00:03]} d5 {[%emt 0:00:14]} 2. b3 {[%emt 0:00:07]} Nf6 {
[%emt 0:00:22]} 3. Bb2 {[%emt 0:00:28]} Bf5 {[%emt 0:00:30]} 4. e3 {[%emt 0:00:
00]} Nbd7 {[%emt 0:00:52]} 5. Be2 {[%emt 0:01:06]} e6 {[%emt 0:00:46]} 6. Nh4 {
[%emt 0:01:50]} Bg6 {[%emt 0:00:28]} 7. d3 {[%emt 0:00:43]} Bd6 {[%emt 0:01:18]
} 8. f4 {[%emt 0:01:47]} c6 {[%emt 0:04:21]} 9. Nd2 {[%emt 0:00:40]} Qb6 {
[%emt 0:05:25]} 10. d4 {[%emt 0:03:52]} a5 {[%emt 0:16:50]} 11. g4 {[%emt 0:00:
00]} Be4 {[%emt 0:02:30]} 12. O-O {[%emt 0:03:22]} h6 {[%emt 0:06:19]} 13. Nxe4
{[%emt 0:02:07]} Nxe4 {[%emt 0:00:31]} 14. Bf3 {[%emt 0:05:53]} Qd8 {[%emt 0:
00:00]} 15. Ng2 {[%emt 0:04:57]} Ndf6 {[%emt 0:02:10]} 16. c4 {[%emt 0:00:31]}
g5 {[%emt 0:11:29]} 17. Qc1 {[%emt 0:06:46]} h5 {[%emt 0:05:12]} 18. Bxe4 {
[%emt 0:00:54]} Nxe4 {[%emt 0:00:34]} 19. Qd1 {[%emt 0:03:45]} hxg4 {[%emt 0:
00:00]} 20. Qxg4 {[%emt 0:00:23]} Qf6 {[%emt 0:06:39]} 21. Ne1 {[%emt 0:03:46]}
Rh4 {[%emt 0:09:23]} 22. Qg2 {[%emt 0:08:46]} gxf4 {[%emt 0:02:39]} 23. Qg8+ {
[%emt 0:00:24]} Ke7 {[%emt 0:00:51]} 24. Qxa8 {[%emt 0:00:22]} Qg6+ {[%emt 0:
00:00]} 25. Ng2 {[%emt 0:02:25]} Rg4 {[%emt 0:04:23]} 26. Qxb7+ {[%emt 0:03:21]
} Kf8 {[%emt 0:01:26]} 27. c5 {[%emt 0:00:35]} Rxg2+ {[%emt 0:00:12]} 28. Kh1 {
[%emt 0:00:08]} Rxh2+ {[%emt 0:00:59]} 29. Kxh2 {[%emt 0:00:19]} f3+ {[%emt 0:
00:00]} 0-1

[Event "44th Chess Olympiad Open 2022"]
[Site "Chennai"]
[Date "2022.08.07"]
[Round "9.73"]
[White "Muhammed, Shuaau"]
[Black "Husbands, Orlando"]
[Result "1/2-1/2"]
[WhiteElo "1987"]
[BlackElo "2353"]
[Annotator "RC"]
[PlyCount "66"]
[EventDate "2022.??.??"]
[TimeControl "60"]

1. e4 {[%emt 0:00:03]} c5 {[%emt 0:00:03]} 2. Nf3 {[%emt 0:00:05]} e6 {[%emt 0:
00:00]} 3. d4 {[%emt 0:00:10]} cxd4 {[%emt 0:00:07]} 4. Nxd4 {[%emt 0:00:05]}
a6 {[%emt 0:00:16]} 5. c4 {[%emt 0:00:33]} Nf6 {[%emt 0:00:36]} 6. Nc3 {
[%emt 0:00:33]} Qc7 {[%emt 0:00:42]} 7. Be3 {[%emt 0:02:09]} Bb4 {[%emt 0:00:
00]} 8. Qf3 {[%emt 0:10:58]} Nc6 {[%emt 0:01:02]} 9. Nxc6 {[%emt 0:03:54]} Qxc6
{[%emt 0:17:21]} 10. Bd4 {[%emt 0:08:16]} Nxe4 {[%emt 0:04:50]} 11. Bxg7 {
[%emt 0:01:07]} Rg8 {[%emt 0:00:16]} 12. a3 {[%emt 0:02:01]} Nxc3 {[%emt 0:00:
00]} 13. Qxc6 {[%emt 0:01:52]} bxc6 {[%emt 0:00:55]} 14. axb4 {[%emt 0:00:21]}
Rxg7 {[%emt 0:00:15]} 15. bxc3 {[%emt 0:00:03]} c5 {[%emt 0:00:50]} 16. f3 {
[%emt 0:17:18]} Rb8 {[%emt 0:03:52]} 17. Rb1 {[%emt 0:02:03]} d6 {[%emt 0:00:
00]} 18. Kf2 {[%emt 0:00:45]} f5 {[%emt 0:00:33]} 19. Bd3 {[%emt 0:04:37]} Rc7
{[%emt 0:02:10]} 20. Rb2 {[%emt 0:08:10]} e5 {[%emt 0:05:23]} 21. Rhb1 {
[%emt 0:03:56]} Ke7 {[%emt 0:00:04]} 22. Ke3 {[%emt 0:05:25]} Rcb7 {[%emt 0:00:
00]} 23. g3 {[%emt 0:02:39]} Kf6 {[%emt 0:02:22]} 24. Be2 {[%emt 0:05:13]} Rb6
{[%emt 0:02:19]} 25. Kd2 {[%emt 0:04:32]} Be6 {[%emt 0:01:18]} 26. b5 {[%emt 0:
00:00]} Ke7 {[%emt 0:03:34]} 27. Kc2 {[%emt 0:01:41]} axb5 {[%emt 0:03:44]} 28.
Rxb5 {[%emt 0:01:12]} Rxb5 29. cxb5 {[%emt 0:00:28]} c4 {[%emt 0:00:41]} 30. f4
{[%emt 0:04:28]} exf4 {[%emt 0:01:20]} 31. gxf4 {[%emt 0:00:09]} Rb6 {[%emt 0:
00:00]} 32. Kd2 Bd5 {[%emt 0:02:30]} 33. Rb4 {[%emt 0:01:46]} Be6 {[%emt 0:00:
00]} 1/2-1/2

[Event "44th Chess Olympiad Open 2022"]
[Site "Chennai"]
[Date "2022.08.07"]
[Round "9.73"]
[White "Parsons, Justin"]
[Black "Mujahid Bin Yazeed"]
[Result "1-0"]
[WhiteElo "1749"]
[BlackElo "1418"]
[Annotator "NA RC"]
[PlyCount "55"]
[EventDate "2022.??.??"]
[TimeControl "60"]

1. d4 {[%emt 0:00:25]} f5 {[%emt 0:00:06]} 2. c4 {[%emt 0:00:22]} Nf6 {[%emt 0:
00:00]} 3. g3 {[%emt 0:00:09]} e6 {[%emt 0:00:15]} 4. Bg2 {[%emt 0:00:10]} c6 {
[%emt 0:00:19]} 5. Nh3 {[%emt 0:00:12]} d5 {[%emt 0:00:42]} 6. O-O {[%emt 0:00:
00]} Be7 {[%emt 0:00:43]} 7. Qc2 {[%emt 0:00:37]} O-O {[%emt 0:00:31]} 8. Nd2 {
[%emt 0:02:01]} Qe8 {[%emt 0:04:36]} 9. Nf3 {[%emt 0:00:43]} h6 {[%emt 0:03:22]
} 10. Nf4 {[%emt 0:02:37]} g5 {[%emt 0:02:21]} 11. Nd3 {[%emt 0:01:30]} Nbd7 {
[%emt 0:05:13]} 12. Nfe5 {[%emt 0:01:57]} Nxe5 {[%emt 0:00:00]} 13. Nxe5 {
[%emt 0:04:01]} Nd7 {[%emt 0:00:00]} 14. Nd3 {[%emt 0:01:42]} Bf6 {[%emt 0:00:
00]} 15. e3 {[%emt 0:03:43]} a5 {[%emt 0:08:00]} 16. Bd2 {[%emt 0:01:56]} b6 {
[%emt 0:02:48]} 17. Rfc1 {[%emt 0:10:46]} Ba6 {[%emt 0:02:52]} 18. b3 {[%emt 0:
00:00]} Rc8 {[%emt 0:03:47]} 19. Rab1 {[%emt 0:12:07]} Qh5 {[%emt 0:10:52]} 20.
c5 {[%emt 0:12:38]} Bd8 {[%emt 0:08:59]} 21. cxb6 {[%emt 0:05:08]} Bxb6 {
[%emt 0:00:58]} 22. b4 {[%emt 0:08:59]} Bxd3 {[%emt 0:02:54]} 23. Qxd3 {
[%emt 0:00:09]} axb4 {[%emt 0:00:35]} 24. Bxb4 {[%emt 0:00:33]} c5 {[%emt 0:00:
00]} 25. dxc5 {[%emt 0:05:34]} Bxc5 {[%emt 0:18:17]} 26. Qb5 {[%emt 0:02:35]}
Bxb4 {[%emt 0:04:34]} 27. Rxc8 {[%emt 0:00:37]} Rxc8 {[%emt 0:00:08]} 28. Qxd7
{[%emt 0:00:13]} 1-0

[Event "44th Chess Olympiad Open 2022"]
[Site "Chennai"]
[Date "2022.08.07"]
[Round "9.74"]
[White "Carpenter, Paul A"]
[Black "Mlawa, Hemed"]
[Result "1/2-1/2"]
[WhiteElo "1938"]
[BlackElo "1896"]
[Annotator "NA"]
[PlyCount "92"]
[EventDate "2022.??.??"]
[TimeControl "60"]

1. e4 {[%emt 0:00:09]} d5 {[%emt 0:00:12]} 2. exd5 {[%emt 0:00:09]} Qxd5 {
[%emt 0:00:06]} 3. Nc3 {[%emt 0:00:10]} Qd8 {[%emt 0:00:07]} 4. Nf3 {[%emt 0:
00:00]} Nf6 {[%emt 0:00:08]} 5. Bc4 {[%emt 0:01:56]} e6 {[%emt 0:00:18]} 6. O-O
{[%emt 0:02:29]} a6 {[%emt 0:00:08]} 7. a4 {[%emt 0:02:11]} c5 {[%emt 0:00:26]}
8. d3 {[%emt 0:22:00]} Nc6 {[%emt 0:00:52]} 9. Bg5 {[%emt 0:05:30]} Be7 {
[%emt 0:00:11]} 10. Qd2 {[%emt 0:02:31]} O-O {[%emt 0:01:28]} 11. Rfe1 {
[%emt 0:08:13]} b6 {[%emt 0:00:27]} 12. Rad1 {[%emt 0:06:29]} Nd4 {[%emt 0:00:
00]} 13. Nxd4 {[%emt 0:12:45]} Qxd4 {[%emt 0:00:07]} 14. Qf4 {[%emt 0:02:10]}
Qxf4 {[%emt 0:13:27]} 15. Bxf4 {[%emt 0:00:09]} Ra7 {[%emt 0:00:17]} 16. h3 {
[%emt 0:10:24]} h6 {[%emt 0:02:02]} 17. Be5 {[%emt 0:02:52]} Nd7 {[%emt 0:00:
00]} 18. Bf4 {[%emt 0:00:27]} Bf6 {[%emt 0:00:34]} 19. Bd2 {[%emt 0:05:17]} Bb7
{[%emt 0:02:48]} 20. Rb1 {[%emt 0:01:26]} Be7 {[%emt 0:01:21]} 21. Bd5 {
[%emt 0:02:15]} Nf6 {[%emt 0:01:15]} 22. Bxb7 {[%emt 0:00:19]} Rxb7 {[%emt 0:
00:00]} 23. Bf4 {[%emt 0:01:37]} Rd8 {[%emt 0:00:31]} 24. Ne4 {[%emt 0:01:02]}
Rd4 {[%emt 0:02:53]} 25. b3 {[%emt 0:01:04]} Nxe4 {[%emt 0:02:34]} 26. Rxe4 {
[%emt 0:00:10]} Rxe4 {[%emt 0:01:25]} 27. dxe4 {[%emt 0:00:03]} Rd7 {[%emt 0:
00:00]} 28. Kf1 {[%emt 0:00:56]} g5 {[%emt 0:01:15]} 29. Be3 {[%emt 0:00:11]}
b5 {[%emt 0:02:15]} 30. axb5 {[%emt 0:00:24]} axb5 {[%emt 0:00:02]} 31. Ra1 {
[%emt 0:00:12]} c4 {[%emt 0:01:22]} 32. bxc4 {[%emt 0:00:38]} bxc4 {[%emt 0:00:
00]} 33. Ra8+ {[%emt 0:00:09]} Rd8 {[%emt 0:03:04]} 34. Rxd8+ {[%emt 0:04:05]}
Bxd8 {[%emt 0:00:05]} 35. Ke2 {[%emt 0:00:19]} Bf6 {[%emt 0:02:28]} 36. Bc5 {
[%emt 0:01:13]} Bc3 {[%emt 0:00:59]} 37. Kd1 {[%emt 0:01:12]} Kg7 {[%emt 0:00:
00]} 38. g4 {[%emt 0:01:22]} Kg6 {[%emt 0:00:15]} 39. Ke2 {[%emt 0:00:18]} f5 {
[%emt 0:01:52]} 40. exf5+ {[%emt 0:01:43]} exf5 {[%emt 0:02:59]} 41. Ke3 {
[%emt 0:10:59]} h5 {[%emt 0:02:53]} 42. f3 {[%emt 0:01:17]} hxg4 {[%emt 0:00:
00]} 43. hxg4 {[%emt 0:00:14]} Bb2 {[%emt 0:01:46]} 44. Be7 {[%emt 0:10:44]}
Bc3 {[%emt 0:12:33]} 45. Bd8 {[%emt 0:05:11]} Be5 {[%emt 0:08:13]} 46. Be7 {
[%emt 0:01:08]} Bc3 {[%emt 0:00:23]} 1/2-1/2